bitfinex-derivatives/quotes_SOLF0:USTF0_20250613
["timestamp","ask_amount","ask_price","bid_price","bid_amount"]
[1749834349148,6.8531282,146.92,146.89,0.04360076]
[1749834349943,6.8531282,146.92,146.89,6.84740076]
[1749834350950,6.803,146.91,146.89,0.04360076]
[1749834351348,0.0504282,146.92,146.89,0.04360076]
[1749834351549,6.8029,146.91,146.89,0.04360076]
[1749834354148,6.8034,146.9,146.89,0.04360076]
[1749834359858,6.8031,146.91,146.89,6.84740076]
[1749834360359,6.8031,146.91,146.89,0.04360076]
[1749834361145,6.8034,146.9,146.89,0.04360076]
[1749834361356,42.1918227,146.9,146.83,36.62]
[1749834361658,14.0785653,146.84,146.8,36.62]
[1749834361856,7.2720653,146.84,146.8,36.62]
[1749834362253,6.8073,146.82,146.81,0.05083887]
[1749834362663,7.2720653,146.82,146.77,36.52]
[1749834363161,6.8081,146.8,146.77,43.3292]
[1749834363556,6.8085,146.79,146.77,36.57167787]
[1749834364161,0.04674325,146.8,146.77,36.57167787]
[1749834364351,7.31880855,146.8,146.77,0.05167787]
[1749834364658,6.8087,146.79,146.77,0.05167787]
[1749834364858,7.2720653,146.78,146.74,36.54]
[1749834365051,7.2720653,146.78,146.71,36.54]
[1749834365260,6.8102,146.76,146.71,36.54]
[1749834365568,7.2720653,146.78,146.71,36.54]
[1749834365864,0.05097615,146.76,146.72,6.8115]
[1749834366055,0.05097615,146.76,146.71,36.54]
[1749834366656,6.86097615,146.76,146.73,6.811]
[1749834366959,0.05097615,146.76,146.73,7.2720653]
[1749834367261,0.05097615,146.76,146.75,6.8103]
[1749834371660,36.54,146.82,146.75,36.54]
[1749834371963,36.54,146.85,146.77,7.27980011]
[1749834372157,2.3504,146.87,146.85,6.8056]
[1749834372352,7.27980011,146.89,146.85,6.8056]
[1749834372663,0.05044355,146.88,146.86,0.04362795]
[1749834373066,6.85484355,146.88,146.86,0.04362795]
[1749834376166,0.05044355,146.88,146.86,0.04362795]
[1749834377071,0.05044355,146.88,146.86,6.84872795]
[1749834378963,0.05044355,146.88,146.87,6.8048]
[1749834379161,43.81980011,146.96,146.87,7.27980011]
[1749834379370,7.33527414,146.95,146.87,7.27980011]
[1749834379568,7.27980011,146.94,146.86,36.54]
[1749834379869,7.27980011,146.9,146.86,36.54]
[1749834380069,14.08350011,146.9,146.87,6.8047]
[1749834380267,0.04388238,146.89,146.87,0.05053056]
[1749834381169,6.84778238,146.89,146.87,0.05053056]
[1749834382268,6.84778238,146.89,146.8,2.2505]
[1749834382269,7.27980011,146.88,146.81,36.54]
[1749834383263,6.85736635,146.86,146.83,0.04354809]
[1749834383462,0.05186635,146.86,146.83,0.04354809]
[1749834383870,6.806,146.85,146.83,0.04354809]
[1749834384066,0.05186635,146.86,146.83,0.04354809]
[1749834384572,6.8057,146.85,146.83,6.85014809]
[1749834384964,6.8062,146.84,146.83,0.04354809]
[1749834385162,7.33166646,146.86,146.83,0.04354809]
[1749834385669,6.806,146.85,146.83,0.04354809]
[1749834385873,43.87166646,146.86,146.83,0.04354809]
[1749834386068,0.05186635,146.86,146.83,0.04354809]
[1749834386264,2.2276,146.9,146.84,7.26978076]
[1749834386664,2.2276,146.9,146.85,6.8055]
[1749834386665,6.8041,146.89,146.85,6.8055]
[1749834386971,2.2276,146.9,146.83,36.54]
[1749834387270,0.05137267,146.88,146.85,0.04569284]
[1749834387862,6.8048,146.87,146.85,0.04569284]
[1749834390077,6.8052,146.86,146.85,0.04569284]
[1749834391879,0.05137267,146.88,146.85,0.04569284]
[1749834392064,0.05137267,146.88,146.85,6.85119284]
[1749834392464,6.85597267,146.88,146.85,6.85119284]
[1749834393075,0.05137267,146.88,146.85,6.85119284]
[1749834393884,0.05137267,146.88,146.85,0.04569284]
[1749834394270,6.8052,146.86,146.85,0.04569284]
[1749834395668,6.8073,146.82,146.8,43.2677]
[1749834395871,36.46,146.86,146.8,36.46]
[1749834396181,7.27110377,146.85,146.77,43.73110377]
[1749834396381,6.8068,146.83,146.8,6.8076]
[1749834396582,38.6427,146.86,146.79,7.27110377]
[1749834396878,0.04857575,146.84,146.81,0.04965147]
[1749834397079,0.04857575,146.84,146.82,6.8068]
[1749834397580,6.85497575,146.84,146.81,6.85695147]
[1749834398481,6.85497575,146.84,146.82,6.8069]
[1749834399180,0.04857575,146.84,146.83,6.8066]
[1749834399380,0.04857575,146.84,146.81,0.04965147]
[1749834399578,0.04857575,146.84,146.82,6.8068]
[1749834399983,0.04857575,146.84,146.82,36.46]
[1749834400183,0.04857575,146.84,146.83,7.27110377]
[1749834400674,0.04857575,146.84,146.83,14.07770377]
[1749834400874,0.04857575,146.84,146.83,6.8066]
[1749834401874,0.04857575,146.84,146.82,36.46]
[1749834402585,0.04857575,146.84,146.83,6.8066]
[1749834403484,0.04857575,146.84,146.82,43.2668]
[1749834404183,0.04857575,146.84,146.83,6.8066]
[1749834404588,0.04857575,146.84,146.82,36.46]
[1749834404778,0.04857575,146.84,146.83,6.8066]
[1749834407084,36.46,146.89,146.85,6.8054]
[1749834407285,6.8047,146.88,146.85,6.8054]
[1749834408084,6.85178062,146.88,146.85,6.84886164]
[1749834408479,0.04708062,146.88,146.85,0.04346164]
[1749834409085,0.04708062,146.88,146.86,6.805]
[1749834409794,6.85148062,146.88,146.85,6.84896164]
[1749834410291,6.8048,146.87,146.85,6.84896164]
[1749834410682,6.8048,146.87,146.85,0.04346164]
[1749834410883,6.8052,146.86,146.85,0.04346164]
[1749834411987,6.8049,146.87,146.85,0.04346164]
[1749834412985,6.8052,146.86,146.85,0.04346164]
[1749834413188,0.04708062,146.88,146.85,0.04346164]
[1749834413390,6.8052,146.86,146.85,0.04346164]
[1749834415092,14.07671556,146.86,146.85,0.04346164]
[1749834416798,19.6406909,146.86,146.85,0.04346164]
[1749834418488,12.36917534,146.86,146.85,0.04346164]
[1749834419392,6.8052,146.86,146.85,0.04346164]
[1749834421600,6.8063,146.84,146.79,36.46]
[1749834422403,7.27409183,146.83,146.76,38.7268]
[1749834422598,0.05073819,146.81,146.78,0.04480788]
[1749834423401,6.8083,146.8,146.78,6.85370788]
[1749834424301,6.8083,146.8,146.78,0.04480788]
[1749834425201,6.8085,146.79,146.78,0.04480788]
[1749834426601,7.27409183,146.79,146.73,36.4]
[1749834427001,6.8093,146.78,146.75,6.8101]
[1749834427395,6.85821642,146.78,146.75,6.83632059]
[1749834427597,6.8097,146.77,146.75,6.83632059]
[1749834427994,6.8097,146.77,146.75,0.02622059]
[1749834428298,0.04891642,146.78,146.75,0.02622059]
[1749834428701,6.81,146.76,146.75,0.02622059]
[1749834428897,7.27409183,146.77,146.7,38.575]
[1749834429102,7.27409183,146.77,146.73,6.8113]
[1749834429304,7.27409183,146.77,146.7,38.575]
[1749834429496,7.27409183,146.77,146.7,36.4]
[1749834429703,6.8118,146.72,146.7,36.4]
[1749834429897,0.04373169,146.72,146.7,36.4]
[1749834430098,0.04373169,146.72,146.7,43.2124]
[1749834431007,0.04373169,146.72,146.71,6.8123]
[1749834432214,0.04373169,146.72,146.7,43.2127]
[1749834432612,0.04373169,146.72,146.7,36.4]
[1749834434202,6.85583169,146.72,146.69,6.813]
[1749834434708,6.85583169,146.72,146.67,38.7157]
[1749834434910,6.8127,146.71,146.67,36.42]
[1749834435109,0.04373169,146.72,146.67,36.42]
[1749834435305,6.8138,146.68,146.66,6.8143]
[1749834435507,6.8589808,146.68,146.66,6.8143]
[1749834435709,0.0451808,146.68,146.64,430.6459]
[1749834435904,0.0451808,146.68,146.64,38.5859]
[1749834436116,0.0451808,146.68,146.64,36.42]
[1749834436515,0.0451808,146.68,146.65,6.815]
[1749834436809,0.0451808,146.68,146.64,36.42]
[1749834437010,0.0451808,146.68,146.67,6.8141]
[1749834437317,0.0451808,146.68,146.64,36.42]
[1749834437525,0.0451808,146.68,146.66,6.8146]
[1749834438213,6.8591808,146.68,146.65,6.815]
[1749834438412,0.0451808,146.68,146.65,6.815]
[1749834438721,6.8590808,146.68,146.65,6.815]
[1749834438904,0.0451808,146.68,146.62,7.29138626]
[1749834439912,0.0451808,146.68,146.67,6.8141]
[1749834441116,0.0451808,146.68,146.66,6.8144]
[1749834441718,0.0451808,146.68,146.62,7.29138626]
[1749834442021,0.0451808,146.68,146.67,6.8141]
[1749834442316,0.0451808,146.68,146.62,7.29138626]
[1749834442513,0.0451808,146.68,146.66,6.8143]
[1749834442815,0.0451808,146.68,146.62,7.29138626]
[1749834444612,6.8591808,146.68,146.65,6.8148]
[1749834444818,7.33656706,146.68,146.61,36.42]
[1749834445215,7.33656706,146.68,146.64,6.8155]
[1749834445423,7.33656706,146.68,146.61,36.42]
[1749834445723,6.8148,146.66,146.61,36.42]
[1749834445910,0.04945577,146.65,146.61,36.42]
[1749834446315,0.04945577,146.65,146.64,6.8154]
[1749834451323,0.04945577,146.65,146.63,6.8157]
[1749834451522,0.04945577,146.65,146.61,36.42]
[1749834451818,6.8156,146.64,146.61,36.42]
[1749834452021,7.29138626,146.64,146.61,36.42]
[1749834452224,7.29138626,146.64,146.59,2.1659]
[1749834452424,7.29138626,146.64,146.58,36.44]
[1749834452817,6.8172,146.61,146.58,43.258]
[1749834453011,0.05079563,146.61,146.58,36.44]
[1749834453422,6.86799563,146.61,146.58,36.44]
[1749834453625,0.05079563,146.61,146.58,36.44]
[1749834453823,0.05079563,146.61,146.58,43.258]
[1749834454027,6.8175,146.6,146.58,36.44]
[1749834454328,7.34993464,146.61,146.56,6.8192]
[1749834455120,6.8186,146.58,146.56,6.8192]
[1749834455324,7.34993464,146.61,146.57,6.8186]
[1749834455626,6.8181,146.59,146.54,2.315]
[1749834455827,0.04401309,146.6,146.56,6.8191]
[1749834456025,0.04401309,146.6,146.54,2.315]
[1749834456225,6.8188,146.57,146.52,36.38]
[1749834456527,0.04675035,146.56,146.55,6.8196]
[1749834456917,0.04675035,146.56,146.52,36.38]
[1749834456918,0.04675035,146.56,146.54,6.82]
[1749834457125,0.04675035,146.56,146.52,36.38]
[1749834457523,0.04675035,146.56,146.53,6.8204]
[1749834458327,0.04675035,146.56,146.52,36.38]
[1749834458527,0.04675035,146.56,146.53,7.30138941]
[1749834458728,40.9248,146.62,146.53,7.30138941]
[1749834458729,38.6464,146.62,146.53,9.68888941]
[1749834459429,6.8179,146.59,146.56,6.8189]
[1749834459728,0.04395136,146.59,146.56,0.04393681]
[1749834460026,0.04395136,146.59,146.57,6.8185]
[1749834460531,0.04395136,146.59,146.56,0.04393681]
[1749834460731,6.86185136,146.59,146.56,6.86293681]
[1749834461631,0.04395136,146.59,146.57,6.8187]
[1749834462731,0.04395136,146.59,146.56,0.04393681]
[1749834463329,0.04395136,146.59,146.57,6.8185]
[1749834463518,0.04395136,146.59,146.56,0.04393681]
[1749834464018,0.04395136,146.59,146.57,6.8185]
[1749834464728,6.86185136,146.59,146.57,6.8185]
[1749834465325,0.04395136,146.59,146.58,6.8183]
[1749834466731,0.04395136,146.59,146.56,36.44393681]
[1749834467428,0.04395136,146.59,146.58,6.8183]
[1749834468327,36.4,146.65,146.61,6.8168]
[1749834468535,36.4,146.68,146.61,7.30138941]
[1749834468830,7.30138941,146.7,146.61,7.30138941]
[1749834469231,38.6279,146.71,146.63,7.30138941]
[1749834469534,38.6279,146.71,146.6,36.4]
[1749834469535,2.2279,146.71,146.68,6.8134]
[1749834469734,4.544,146.72,146.68,6.8134]
[1749834469938,0.0511822,146.71,146.69,6.86249334]
[1749834470832,6.8127,146.7,146.69,0.04939334]
[1749834471136,0.0511822,146.71,146.69,0.04939334]
[1749834471639,6.8637822,146.71,146.69,0.04939334]
[1749834473138,6.8127,146.7,146.69,0.04939334]
[1749834474942,6.8636822,146.71,146.69,0.04939334]
[1749834476542,6.8128,146.7,146.69,0.04939334]
[1749834477739,0.0511822,146.71,146.65,36.4]
[1749834477935,6.8139,146.68,146.65,36.4]
[1749834478642,7.30138941,146.7,146.65,36.4]
[1749834478849,0.04633611,146.69,146.66,0.04130836]
[1749834479150,6.8139,146.68,146.66,0.04130836]
[1749834479541,6.8142,146.67,146.66,0.04130836]
[1749834480746,6.8157,146.64,146.62,36.38]
[1749834480943,7.30138941,146.65,146.59,36.38]
[1749834481148,7.30138941,146.63,146.59,43.1976]
[1749834481443,7.30138941,146.63,146.56,36.38]
[1749834481651,7.30138941,146.63,146.58,6.8181]
[1749834481837,6.8172,146.61,146.58,6.8181]
[1749834482542,0.04794356,146.62,146.59,6.8178]
[1749834483035,6.817,146.61,146.58,6.8181]
[1749834483236,0.04794356,146.62,146.56,36.38]
[1749834483439,0.04794356,146.62,146.56,43.68138941]
[1749834484446,6.86474356,146.62,146.59,6.8177]
[1749834484642,0.04794356,146.62,146.56,36.38]
[1749834484851,0.04794356,146.62,146.56,43.1989]
[1749834484852,6.8176,146.6,146.56,43.1989]
[1749834485047,7.30138941,146.59,146.54,2.204]
[1749834485247,0.05169196,146.58,146.54,2.204]
[1749834486050,0.05169196,146.58,146.55,6.8194]
[1749834486250,0.05169196,146.58,146.54,2.204]
[1749834486550,0.05169196,146.58,146.54,9.50538941]
[1749834487256,0.05169196,146.58,146.56,6.8189]
[1749834489856,0.05169196,146.58,146.55,6.8195]
[1749834490756,0.05169196,146.58,146.56,6.8192]
[1749834491459,0.05169196,146.58,146.57,6.8188]
[1749834492457,0.05169196,146.58,146.54,2.204]
[1749834492764,0.05169196,146.58,146.55,7.30138941]
[1749834492953,0.05169196,146.58,146.57,6.8188]
[1749834493863,40.8896,146.65,146.6,6.8172]
[1749834494357,40.8896,146.65,146.57,36.36]
[1749834494663,6.8163,146.63,146.57,36.36]
[1749834494866,0.05024109,146.61,146.59,6.86545513]
[1749834495063,0.05024109,146.61,146.59,0.04785513]
[1749834495759,0.05024109,146.61,146.6,6.8174]
[1749834497561,6.86724109,146.61,146.59,6.86555513]
[1749834498161,0.05024109,146.61,146.59,0.04785513]
[1749834498766,0.05024109,146.61,146.6,6.8174]
[1749834500266,0.05024109,146.61,146.59,0.04785513]
[1749834500769,6.86724109,146.61,146.59,0.04785513]
[1749834501958,0.05024109,146.61,146.59,6.86565513]
[1749834502467,0.05024109,146.61,146.6,6.8174]
[1749834503063,0.05024109,146.61,146.59,6.86555513]
[1749834503273,0.05024109,146.61,146.59,0.04785513]
[1749834503766,0.05024109,146.61,146.6,6.8174]
[1749834503959,7.30138941,146.67,146.59,0.04785513]
[1749834504158,7.30138941,146.67,146.58,7.30138941]
[1749834504359,36.34,146.68,146.62,7.30138941]
[1749834504565,6.728,146.69,146.62,7.30138941]
[1749834504765,6.8138,146.68,146.65,6.8148]
[1749834504973,0.04896876,146.68,146.65,0.04430667]
[1749834505459,6.8143,146.67,146.65,0.04430667]
[1749834505665,0.04896876,146.68,146.65,0.04430667]
[1749834506273,6.8142,146.67,146.65,0.04430667]
[1749834507267,0.04896876,146.68,146.65,0.04430667]
[1749834507869,6.86286876,146.68,146.65,0.04430667]
[1749834508069,6.86286876,146.68,146.65,6.85910667]
[1749834508269,6.86286876,146.68,146.65,0.04430667]
[1749834508673,6.86286876,146.68,146.65,6.85920667]
[1749834508871,7.34152187,146.68,146.65,0.04430667]
[1749834509174,40.8224,146.67,146.56,36.34]
[1749834509563,7.29255311,146.64,146.58,6.8182]
[1749834509875,6.817,146.61,146.58,6.8182]
[1749834510075,0.05207817,146.62,146.61,6.8169]
[1749834510374,0.05004629,146.63,146.6,0.0465866]
[1749834510969,0.05004629,146.63,146.61,7.29255311]
[1749834511761,0.05004629,146.63,146.62,6.8165]
[1749834512475,0.05004629,146.63,146.6,45.35913971]
[1749834513070,0.05004629,146.63,146.62,6.8165]
[1749834517274,0.05004629,146.63,146.62,14.10732602]
[1749834520082,6.8138,146.68,146.65,6.8149]
[1749834520286,6.8133,146.69,146.62,7.29082602]
[1749834520687,6.8137,146.68,146.65,6.8148]
[1749834520983,40.4144,146.7,146.62,7.29082602]
[1749834521186,0.04493659,146.67,146.65,0.04942737]
[1749834522285,0.04493659,146.67,146.66,6.8146]
[1749834522485,40.2998,146.73,146.66,7.29082602]
[1749834522685,38.02,146.76,146.68,7.29082602]
[1749834522887,38.02,146.76,146.68,45.31082602]
[1749834523689,0.04460252,146.73,146.71,0.04867873]
[1749834524184,6.8121,146.72,146.71,0.04867873]
[1749834526690,6.85610252,146.73,146.71,0.04867873]
[1749834527186,6.8118,146.72,146.71,0.04867873]
[1749834527790,0.04460252,146.73,146.71,0.04867873]
[1749834527992,6.8118,146.72,146.71,0.04867873]
[1749834529494,0.04460252,146.73,146.71,0.04867873]
[1749834530895,0.04460252,146.73,146.71,6.86067873]
[1749834533090,0.04460252,146.73,146.72,6.8118]
[1749834533299,0.04460252,146.73,146.72,14.10262602]
[1749834534801,0.04460252,146.73,146.72,52.10262602]
[1749834535300,38.0,146.79,146.74,6.8105]
[1749834535502,45.29082602,146.82,146.74,7.29082602]
[1749834535799,6.809,146.79,146.74,7.29082602]
[1749834536000,45.29082602,146.82,146.75,6.8101]
[1749834536597,0.04735907,146.8,146.77,0.04819702]
[1749834536802,0.04735907,146.8,146.78,7.29082602]
[1749834537109,45.29082602,146.88,146.78,7.29082602]
[1749834537308,38.0,146.88,146.81,7.29082602]
[1749834537499,38.0,146.88,146.81,38.0]
[1749834537698,7.29082602,146.86,146.81,38.0]
[1749834537899,0.04318052,146.85,146.82,0.04340137]
[1749834538605,6.8067,146.83,146.82,0.04340137]
[1749834539300,7.29082602,146.84,146.76,6.8098]
[1749834539507,4.6835,146.83,146.75,430.52]
[1749834539706,7.29082602,146.82,146.75,430.52]
[1749834539898,6.8085,146.8,146.76,6.8099]
[1749834540099,7.29082602,146.82,146.75,430.52]
[1749834540302,7.33388905,146.8,146.77,0.04720969]
[1749834540699,6.8093,146.78,146.77,0.04720969]
[1749834544510,6.8108,146.75,146.72,45.0115]
[1749834544912,6.8101,146.76,146.72,38.2]
[1749834545107,2.3175,146.79,146.74,6.8107]
[1749834545308,2.3175,146.79,146.72,38.2]
[1749834545508,6.85408058,146.77,146.74,0.04838855]
[1749834545713,0.04418058,146.77,146.74,0.04838855]
[1749834546215,6.8102,146.76,146.74,0.04838855]
[1749834546413,0.04418058,146.77,146.74,0.04838855]
[1749834547816,6.8104,146.75,146.74,0.04838855]
[1749834548309,4.58648058,146.77,146.69,38.2]
[1749834548512,4.5423,146.77,146.69,38.2]
[1749834548809,6.8112,146.74,146.7,6.8123]
[1749834549118,4.5423,146.77,146.69,50.06487797]
[1749834549423,0.04547461,146.74,146.72,0.04994491]
[1749834551019,6.85657461,146.74,146.72,0.04994491]
[1749834551216,0.04547461,146.74,146.72,0.04994491]
[1749834552213,0.04547461,146.74,146.73,6.8112]
[1749834552615,0.04547461,146.74,146.73,45.0112]
[1749834553708,2.3615,146.81,146.73,50.06487797]
[1749834554210,6.8083,146.8,146.73,50.06487797]
[1749834554821,0.0453136,146.78,146.76,6.8094]
[1749834555117,0.0453136,146.78,146.75,0.0509124]
[1749834555317,0.0453136,146.78,146.76,6.8097]
[1749834556212,0.0453136,146.78,146.75,0.0509124]
[1749834556413,0.0453136,146.78,146.75,11.91579037]
[1749834556612,0.0453136,146.78,146.77,6.8093]
[1749834557215,0.0453136,146.78,146.75,11.91579037]
[1749834557911,0.0453136,146.78,146.75,0.0509124]
[1749834558310,0.0453136,146.78,146.75,6.8609124]
[1749834558816,0.0453136,146.78,146.76,6.8094]
[1749834559019,0.0453136,146.78,146.75,0.0509124]
[1749834559914,0.0453136,146.78,146.77,6.8093]
[1749834560115,2.3421,146.84,146.77,38.2]
[1749834560423,6.8069,146.83,146.79,6.8081]
[1749834561114,0.05124674,146.82,146.8,0.04870376]
[1749834562119,6.8075,146.81,146.8,0.04870376]
[1749834563513,6.85844674,146.82,146.8,0.04870376]
[1749834563722,0.05124674,146.82,146.8,6.85630376]
[1749834563915,0.05124674,146.82,146.8,0.04870376]
[1749834564115,6.85844674,146.82,146.8,0.04870376]
[1749834565213,6.8075,146.81,146.8,0.04870376]
[1749834565526,0.05124674,146.82,146.8,0.04870376]
[1749834565926,6.85854674,146.82,146.8,0.04870376]
[1749834566314,0.05124674,146.82,146.8,0.04870376]
[1749834566523,6.85844674,146.82,146.8,0.04870376]
[1749834567027,6.8075,146.81,146.8,0.04870376]
[1749834567422,0.05124674,146.82,146.8,0.04870376]
[1749834568827,6.85834674,146.82,146.8,0.04870376]
[1749834569629,0.05124674,146.82,146.8,0.04870376]
[1749834570231,6.85824674,146.82,146.8,0.04870376]
[1749834570828,6.8075,146.81,146.8,0.04870376]
[1749834571321,0.05124674,146.82,146.8,6.85660376]
[1749834573135,6.85824674,146.82,146.8,6.85660376]
[1749834573343,0.05124674,146.82,146.8,6.85660376]
[1749834574337,6.85854674,146.82,146.8,6.85660376]
[1749834575329,0.05124674,146.82,146.81,6.8075]
[1749834575538,40.1174,146.89,146.8,7.32437134]
[1749834575725,6.8049,146.87,146.82,7.27566758]
[1749834575926,40.1174,146.89,146.85,6.8054]
[1749834576441,11.73006758,146.91,146.86,6.8051]
[1749834576735,0.05001111,146.9,146.87,0.0505624]
[1749834577438,6.8041,146.89,146.87,0.0505624]
[1749834577933,6.8041,146.89,146.87,6.8552624]
[1749834578135,6.8042,146.88,146.87,0.0505624]
[1749834578535,0.05001111,146.9,146.87,0.0505624]
[1749834578729,6.804,146.89,146.87,0.0505624]
[1749834579033,0.05001111,146.9,146.87,0.0505624]
[1749834579333,2.3754,146.95,146.88,7.27566758]
[1749834579533,2.3754,146.95,146.9,7.27566758]
[1749834579724,2.3754,146.95,146.91,6.8026]
[1749834579725,6.8015,146.94,146.91,6.8026]
[1749834579930,6.8015,146.94,146.9,37.8]
[1749834580136,2.3754,146.95,146.9,37.8]
[1749834580434,0.05111152,146.94,146.91,0.0451277]
[1749834580834,6.85291152,146.94,146.91,0.0451277]
[1749834581932,7.3267791,146.94,146.91,0.0451277]
[1749834582233,6.8024,146.92,146.91,0.0451277]
[1749834583234,0.05111152,146.94,146.91,0.0451277]
[1749834583835,6.85281152,146.94,146.91,6.8477277]
[1749834585841,6.802,146.93,146.91,0.0451277]
[1749834586041,0.05111152,146.94,146.91,0.0451277]
[1749834586428,6.8024,146.92,146.91,0.0451277]
[1749834587936,6.8043,146.88,146.84,37.78]
[1749834588539,6.8043,146.88,146.85,6.8054]
[1749834589041,6.85317974,146.88,146.85,6.85263143]
[1749834591842,0.04887974,146.88,146.85,0.04723143]
[1749834592541,9.67584732,146.88,146.81,37.78]
[1749834593142,6.8063,146.84,146.81,44.5872]
[1749834593446,0.04377433,146.84,146.81,37.82426438]
[1749834593745,0.04377433,146.84,146.81,44.63156438]
[1749834594437,0.04377433,146.84,146.81,37.82426438]
[1749834594846,6.807,146.82,146.81,0.04426438]
[1749834600050,7.27566758,146.82,146.75,37.08]
[1749834600450,6.8079,146.81,146.75,37.08]
[1749834600648,7.27566758,146.82,146.75,37.08]
[1749834600848,0.04544241,146.8,146.78,6.8087]
[1749834601047,0.04544241,146.8,146.77,0.04961709]
[1749834601246,0.04544241,146.8,146.79,6.8084]
[1749834601642,0.04544241,146.8,146.77,0.04961709]
[1749834601847,0.04544241,146.8,146.77,6.85871709]
[1749834602049,0.04544241,146.8,146.77,0.04961709]
[1749834602359,0.04544241,146.8,146.78,6.8088]
[1749834602542,0.04544241,146.8,146.77,0.04961709]
[1749834604253,0.04544241,146.8,146.79,6.8084]
[1749834604454,0.04544241,146.8,146.77,0.04961709]
[1749834604845,0.04544241,146.8,146.78,6.8085]
[1749834605042,0.04544241,146.8,146.77,0.04961709]
[1749834605353,0.04544241,146.8,146.79,6.8084]
[1749834608353,0.04544241,146.8,146.78,6.8087]
[1749834608548,0.04544241,146.8,146.77,0.04961709]
[1749834609057,0.04544241,146.8,146.79,6.8085]
[1749834610256,0.04544241,146.8,146.78,6.8088]
[1749834610561,0.04544241,146.8,146.77,0.04961709]
[1749834610858,0.04544241,146.8,146.79,6.8085]
[1749834611058,0.04544241,146.8,146.77,0.04961709]
[1749834611261,6.8085,146.79,146.77,0.04961709]
[1749834611461,0.04544241,146.8,146.77,0.04961709]
[1749834611962,6.85364241,146.8,146.77,0.04961709]
[1749834612157,0.04544241,146.8,146.77,0.04961709]
[1749834613762,6.8089,146.78,146.77,0.04961709]
[1749834614662,6.8098,146.77,146.72,37.08]
[1749834614859,7.27566758,146.77,146.72,37.08]
[1749834615557,7.27566758,146.77,146.69,37.08]
[1749834615755,6.8115,146.73,146.72,0.04424203]
[1749834615955,0.05018887,146.74,146.72,0.04424203]
[1749834617251,6.86108887,146.74,146.72,0.04424203]
[1749834617661,0.05018887,146.74,146.72,0.04424203]
[1749834617969,6.8112,146.73,146.72,0.04424203]
[1749834618261,7.3337047,146.74,146.66,37.08]
[1749834618466,7.28351583,146.74,146.66,37.08]
[1749834618765,7.28351583,146.74,146.68,6.8133]
[1749834618962,7.28351583,146.72,146.66,37.08]
[1749834619166,0.04596878,146.7,146.68,0.05227114]
[1749834619358,7.32948461,146.7,146.62,37.08]
[1749834619561,7.28351583,146.7,146.62,37.08]
[1749834619762,4.5119,146.71,146.62,37.08]
[1749834619763,7.28351583,146.68,146.62,37.08]
[1749834619963,6.8147,146.66,146.63,6.8157]
[1749834620160,7.28351583,146.68,146.62,37.08]
[1749834620460,0.04958595,146.66,146.59,44.36351583]
[1749834620660,7.28351583,146.64,146.56,39.3942]
[1749834620859,0.04724891,146.61,146.53,39.3029]
[1749834621060,0.0504387,146.58,146.56,6.8189]
[1749834621267,0.0504387,146.58,146.53,39.3029]
[1749834621562,0.0504387,146.58,146.56,7.28351583]
[1749834621765,2.2461,146.69,146.57,37.1]
[1749834621967,6.8149,146.66,146.62,6.8163]
[1749834622261,37.1,146.68,146.61,44.38351583]
[1749834622566,6.8146,146.66,146.61,44.38351583]
[1749834622765,0.04317428,146.65,146.62,0.05227563]
[1749834623163,6.8157,146.64,146.62,0.05227563]
[1749834623363,0.04317428,146.65,146.62,0.05227563]
[1749834623667,6.8159,146.63,146.62,0.05227563]
[1749834623865,7.28351583,146.64,146.58,37.1]
[1749834624066,9.50381583,146.64,146.58,37.1]
[1749834624263,7.28351583,146.62,146.55,37.1]
[1749834624867,6.818,146.59,146.55,43.9193]
[1749834625063,0.04600363,146.6,146.55,43.9193]
[1749834625571,6.818,146.59,146.55,43.9193]
[1749834625771,0.04600363,146.6,146.55,37.1]
[1749834626069,0.04600363,146.6,146.55,48.99430965]
[1749834626271,0.04600363,146.6,146.59,6.8177]
[1749834626469,6.8149,146.66,146.59,11.89430965]
[1749834626675,6.8149,146.66,146.59,48.99430965]
[1749834626968,6.8149,146.66,146.62,6.816]
[1749834627369,37.1,146.67,146.64,6.8151]
[1749834627563,0.04564974,146.67,146.64,0.05081248]
[1749834629661,6.8148,146.66,146.64,0.05081248]
[1749834630370,6.815,146.65,146.64,0.05081248]